bitfinex/quotes_BTCUSD_20250428
["timestamp","ask_amount","ask_price","bid_price","bid_amount"]
[1745834910763,0.2644504,94785.0,94782.0,0.013]
[1745834911105,0.4106,94784.0,94782.0,0.013]
[1745834911273,0.4106,94784.0,94783.0,0.65789844]
[1745834911453,0.001,94789.0,94788.0,0.21099717]
[1745834911659,0.001,94789.0,94788.0,0.31999687]
[1745834911858,0.001,94789.0,94788.0,0.31788731]
[1745834912289,0.4106,94799.0,94792.0,0.01054941]
[1745834912496,0.4106,94799.0,94793.0,0.119549]
[1745834912692,0.4106,94799.0,94793.0,0.13919892]
[1745834913286,0.4106,94799.0,94793.0,0.12864962]
[1745834913456,0.0466,94798.0,94793.0,0.13919892]
[1745834913658,0.0466,94798.0,94794.0,0.04148059]
[1745834913859,0.4106,94797.0,94795.0,0.1089997]
[1745834914231,0.4106,94797.0,94796.0,0.01964992]
[1745834914450,0.4106,94797.0,94796.0,0.12654006]
[1745834914859,0.4106,94797.0,94796.0,0.13637074]
[1745834915277,0.4106,94797.0,94796.0,0.14837073]
[1745834915479,0.4106,94797.0,94796.0,0.13637074]
[1745834916152,0.4106,94797.0,94796.0,0.14137074]
[1745834916446,0.4106,94797.0,94796.0,0.14937074]
[1745834918153,0.4106,94797.0,94796.0,0.3603501]
[1745834918352,0.4106,94797.0,94796.0,0.14937074]
[1745834931797,0.4106,94797.0,94796.0,0.3603501]
[1745834932184,0.4106,94797.0,94796.0,0.14937074]
[1745834933314,0.4106,94797.0,94796.0,0.3603501]
[1745834933515,0.4106,94797.0,94796.0,0.14937074]
[1745834933820,0.4106,94797.0,94796.0,0.7003501]
[1745834933979,0.4106,94797.0,94796.0,0.81009095]
[1745834934844,0.4106,94797.0,94796.0,0.80209095]
[1745834935063,0.4176,94797.0,94796.0,0.80309095]
[1745834935420,0.4176,94797.0,94796.0,0.79809095]
[1745834935623,0.4286,94797.0,94796.0,0.81109094]
[1745834935853,0.4286,94797.0,94796.0,0.79909095]
[1745834937848,0.018,94797.0,94796.0,0.79909095]
[1745834938052,0.018,94797.0,94796.0,0.7966301]
[1745834939463,0.018,94797.0,94796.0,0.79669891]
[1745834941776,0.018,94797.0,94796.0,0.85903976]
[1745834942177,0.01008844,94797.0,94796.0,0.85903976]
[1745834942587,0.01008844,94797.0,94796.0,0.85515976]
[1745834942997,0.01008844,94797.0,94796.0,0.85415976]
[1745834943425,0.05,94800.0,94799.0,0.55097268]
[1745834943627,0.05,94800.0,94799.0,0.6676935]
[1745834944060,0.05,94800.0,94799.0,0.68741223]
[1745834945615,0.058,94800.0,94799.0,0.68841223]
[1745834949066,0.058,94800.0,94799.0,0.79181223]
[1745834950815,0.058,94800.0,94799.0,0.68841223]
[1745834950991,0.058,94800.0,94799.0,0.79181223]
[1745834951827,0.05089497,94806.0,94805.0,0.76550018]
[1745834952033,0.05089497,94806.0,94805.0,0.87239032]
[1745834952184,0.04141397,94811.0,94810.0,0.21094821]
[1745834952383,0.04141397,94811.0,94810.0,0.31994741]
[1745834952600,0.04141397,94811.0,94810.0,0.33755708]
[1745834953231,0.04141397,94811.0,94810.0,0.34738776]
[1745834953504,0.0008494,94826.0,94813.0,0.56548238]
[1745834953719,0.0008494,94826.0,94813.0,0.70365869]
[1745834953924,0.0008494,94826.0,94813.0,0.72337742]
[1745834954129,0.00068954,94814.0,94813.0,0.69209125]
[1745834954531,0.00068954,94814.0,94813.0,0.70192193]
[1745834956153,0.00068954,94814.0,94813.0,0.73368583]
[1745834959822,0.00068954,94814.0,94813.0,0.83708583]
[1745834962107,0.00068954,94814.0,94813.0,0.83704583]
[1745834966413,0.00068954,94814.0,94813.0,0.6261043]
[1745834966617,0.00068954,94814.0,94813.0,0.83704583]
[1745834968435,0.04696906,94822.0,94821.0,0.41092374]
[1745834968776,0.04701481,94822.0,94821.0,0.88736329]
[1745834969270,0.04701481,94822.0,94821.0,0.89514266]
[1745834969481,0.04701481,94822.0,94821.0,0.89614266]
[1745834969679,0.03917121,94828.0,94827.0,0.55091039]
[1745834969878,0.03917121,94828.0,94827.0,0.65780053]
[1745834970033,0.03917121,94828.0,94827.0,0.67751926]
[1745834970237,0.03194463,94828.0,94827.0,0.69206011]
[1745834970458,0.03194463,94828.0,94827.0,0.74546011]
[1745834971182,0.03194463,94828.0,94827.0,0.75529079]
[1745834971788,0.03194463,94828.0,94827.0,0.75629079]
[1745834972508,0.03194463,94828.0,94827.0,0.75529079]
[1745834979510,0.03194463,94828.0,94827.0,0.70189079]
[1745834980034,0.12994463,94828.0,94827.0,0.13643955]
[1745834980198,0.0485,94826.0,94791.0,0.01054952]
[1745834980391,0.0495,94815.0,94785.0,0.01055019]
[1745834980644,0.0495,94815.0,94780.0,0.01055074]
[1745834980645,0.2644504,94810.0,94806.0,4.575e-05]
[1745834980814,0.0495,94815.0,94806.0,4.575e-05]
[1745834981215,0.0484,94813.0,94806.0,4.575e-05]
[1745834981440,0.00263691,94812.0,94806.0,4.575e-05]
[1745834982657,0.00363691,94812.0,94806.0,4.575e-05]
[1745834984411,0.00363691,94812.0,94807.0,0.01007658]
[1745834984616,0.001,94812.0,94807.0,0.01007658]
[1745834985346,0.0484,94813.0,94807.0,0.01007658]
[1745834985550,0.0484,94813.0,94807.0,0.02207658]
[1745834985750,0.001,94812.0,94807.0,0.03807658]
[1745834985956,0.001,94812.0,94808.0,0.05032907]
[1745834987335,0.0484,94813.0,94808.0,0.05032907]
[1745834987667,0.0494,94813.0,94808.0,0.05032907]
[1745834988142,0.0494,94813.0,94808.0,0.06232907]
[1745834988344,0.001,94813.0,94812.0,0.21094376]
[1745834988542,0.4106,94819.0,94816.0,0.22147959]
[1745834988721,0.4106,94819.0,94815.0,0.01054685]
[1745834988941,0.4106,94819.0,94816.0,0.01054674]
[1745834990247,0.4106,94819.0,94814.0,0.21093815]
[1745834990248,0.4106,94819.0,94814.0,0.01054696]
[1745834990645,0.4106,94819.0,94813.0,0.01160148]
[1745834990872,0.4116,94819.0,94815.0,0.01]
[1745834991074,0.4116,94819.0,94816.0,0.011]
[1745834991447,0.4126,94819.0,94814.0,0.01]
[1745834991666,0.4116,94819.0,94814.0,0.01054696]
[1745834991897,0.4116,94819.0,94814.0,0.06671928]
[1745834992105,0.4126,94819.0,94815.0,0.01]
[1745834992263,0.4106,94819.0,94814.0,0.06671928]
[1745834992461,0.4116,94819.0,94814.0,0.06617232]
[1745834992666,0.4116,94819.0,94815.0,0.05313139]
[1745834993779,0.4106,94819.0,94815.0,0.05313139]
[1745834994196,0.4116,94819.0,94815.0,0.021]
[1745834996889,0.4116,94819.0,94816.0,0.00982916]
[1745834997797,0.4106,94819.0,94816.0,0.00982916]
[1745834997998,0.4106,94819.0,94816.0,0.02082916]
[1745834998207,0.4116,94819.0,94816.0,0.03082916]
[1745834998672,0.4116,94819.0,94817.0,0.00982916]
[1745834999546,0.4116,94819.0,94818.0,0.00982916]
[1745835000174,0.4106,94819.0,94818.0,0.00982916]
[1745835000744,0.4116,94819.0,94818.0,0.00982916]
[1745835001625,0.4126,94819.0,94818.0,0.0655661]
[1745835002292,0.4126,94819.0,94818.0,0.04590492]
[1745835003154,0.4126,94819.0,94818.0,0.06557569]
[1745835004946,0.4126,94819.0,94818.0,0.72339624]
[1745835005061,0.002,94819.0,94818.0,0.72339624]
[1745835005268,0.002,94819.0,94818.0,0.81621344]
[1745835005467,0.002,94819.0,94818.0,0.86511344]
[1745835005687,0.002,94819.0,94818.0,0.87965429]
[1745835005941,0.4106,94832.0,94827.0,0.55091039]
[1745835006143,0.0008486,94838.0,94827.0,0.78436144]
[1745835006698,0.0008486,94838.0,94827.0,0.7941906]
[1745835007845,0.0008486,94838.0,94827.0,0.77451983]
[1745835008092,0.0008486,94838.0,94827.0,0.77551983]
[1745835008266,0.03294463,94828.0,94827.0,0.77651983]
[1745835009100,0.03294463,94828.0,94827.0,1.05933569]
[1745835009967,0.03294463,94828.0,94827.0,1.05833569]
[1745835010548,0.03194463,94828.0,94827.0,1.05733569]
[1745835010754,0.03294463,94828.0,94827.0,1.05733569]
[1745835015522,0.01169355,94828.0,94827.0,1.11073569]
[1745835015703,0.0008486,94838.0,94832.0,0.56544012]
[1745835015905,0.0008486,94838.0,94832.0,1.69146607]
[1745835016468,0.0008486,94838.0,94832.0,1.05230707]
[1745835016603,0.0008486,94838.0,94832.0,0.71630808]
[1745835016803,0.051,94833.0,94832.0,0.83727908]
[1745835017264,0.05,94833.0,94832.0,0.83727908]
[1745835017463,0.051,94833.0,94832.0,0.83727908]
[1745835017674,0.0405972,94839.0,94838.0,0.76542678]
[1745835017846,0.0405972,94839.0,94838.0,0.98587268]
[1745835018233,0.0405972,94839.0,94838.0,1.01537685]
[1745835018668,0.002,94849.0,94843.0,0.22541566]
[1745835018856,0.002,94849.0,94843.0,0.44789874]
[1745835019061,0.002,94849.0,94843.0,0.4577279]
[1745835019196,0.002,94849.0,94843.0,0.47740291]
[1745835022376,0.002,94849.0,94843.0,0.4577279]
[1745835023370,0.002,94849.0,94843.0,0.4657593]
[1745835023598,0.002,94849.0,94843.0,0.8057593]
[1745835027257,0.002,94849.0,94843.0,0.59488449]
[1745835027961,0.002,94849.0,94843.0,0.8057593]
[1745835031819,0.002,94849.0,94843.0,0.81333078]
[1745835033729,0.002,94849.0,94843.0,0.80350162]
[1745835035884,0.002,94849.0,94843.0,0.81335946]
[1745835039634,0.04294126,94844.0,94843.0,0.81335946]
[1745835040085,0.04294126,94844.0,94843.0,0.76405946]
[1745835040741,0.04294126,94844.0,94843.0,0.11446162]
[1745835040942,0.04294126,94844.0,94816.0,0.00772243]
[1745835040943,0.0203,94843.0,94816.0,0.00772243]
[1745835041168,0.2644504,94841.0,94821.0,0.09668]
[1745835041346,0.02293622,94840.0,94822.0,0.00105383]
[1745835041572,0.0203,94840.0,94832.0,0.09668]
[1745835041699,0.0203,94840.0,94832.0,0.13061772]
[1745835042099,0.0203,94840.0,94832.0,0.03393772]
[1745835042483,0.0203,94840.0,94833.0,0.09668]
[1745835042726,0.0203,94840.0,94835.0,0.01054463]
[1745835042932,0.0203,94840.0,94836.0,0.01054451]
[1745835043107,0.0203,94840.0,94836.0,0.00986066]
[1745835043327,0.08934126,94844.0,94838.0,0.01054429]
[1745835043537,0.08934126,94844.0,94839.0,0.22595401]
[1745835043715,0.08934126,94844.0,94841.0,0.01054396]
[1745835044117,0.08934126,94844.0,94839.0,0.02561603]
[1745835044118,0.08934126,94844.0,94839.0,0.01507185]
[1745835044315,0.08934126,94844.0,94836.0,0.22143473]
[1745835044523,0.09034126,94844.0,94838.0,0.015]
[1745835044762,0.09034126,94844.0,94838.0,0.02554429]
[1745835045062,0.09034126,94844.0,94838.0,0.015]
[1745835045267,0.09034126,94844.0,94839.0,0.00985728]
[1745835045669,0.08934126,94844.0,94839.0,0.00985728]
[1745835045962,0.08934126,94844.0,94840.0,0.00985728]
[1745835046168,0.09034126,94844.0,94841.0,0.011]
[1745835046328,0.09134126,94844.0,94840.0,0.00985728]
[1745835046534,0.09034126,94844.0,94840.0,0.00985728]
[1745835046944,0.09034126,94844.0,94841.0,0.00985728]
[1745835047374,0.09234126,94844.0,94841.0,0.02085728]
[1745835047813,0.09034126,94844.0,94840.0,0.013]
[1745835048650,0.08934126,94844.0,94838.0,0.01054429]
[1745835049003,0.09134126,94844.0,94841.0,0.013]
[1745835049416,0.09034126,94844.0,94840.0,0.02154407]
[1745835049615,0.09034126,94844.0,94840.0,0.01054407]
[1745835049818,0.09034126,94844.0,94838.0,0.02354429]
[1745835050026,0.09134126,94844.0,94841.0,0.0098475]
[1745835050239,0.00263593,94843.0,94841.0,0.0098475]
[1745835050440,0.0495,94842.0,94841.0,0.0098475]
[1745835051269,0.0495,94842.0,94840.0,0.024]
[1745835051478,0.0026362,94841.0,94840.0,0.024]
[1745835051878,0.0026362,94841.0,94840.0,0.011]
[1745835052440,0.0026362,94841.0,94833.0,0.09668]
[1745835052878,0.0026362,94841.0,94822.0,0.01159987]
[1745835052879,0.001,94841.0,94840.0,0.012]
[1745835053295,0.0495,94842.0,94831.0,0.000157]
[1745835053296,0.0495,94842.0,94832.0,0.01054496]
[1745835053519,0.001,94841.0,94840.0,0.01]
[1745835053739,0.001,94841.0,94840.0,0.009]
[1745835053740,0.002,94841.0,94840.0,0.009]
[1745835054192,0.001,94841.0,94834.0,0.01054474]
[1745835054581,0.001,94841.0,94833.0,0.012]
[1745835054925,0.001,94842.0,94832.0,0.01]
[1745835055151,0.001,94842.0,94833.0,0.0196773]
[1745835055377,0.002,94842.0,94833.0,0.0196773]
[1745835055586,0.001,94842.0,94832.0,0.0903338]
[1745835056267,0.001,94841.0,94834.0,0.01967692]
[1745835056472,0.001,94841.0,94840.0,0.01967692]
[1745835056698,0.08834126,94844.0,94840.0,0.01967692]
[1745835057105,0.001,94842.0,94840.0,0.01]
[1745835057410,0.08834126,94844.0,94836.0,0.01967692]
[1745835057588,0.001,94841.0,94840.0,0.009]
[1745835058561,0.001,94841.0,94840.0,0.03967692]
[1745835058973,0.001,94842.0,94840.0,0.03067692]
[1745835059175,0.08934126,94844.0,94840.0,0.02867692]
[1745835059423,0.08934126,94844.0,94841.0,0.01967692]
[1745835059626,0.08834126,94844.0,94841.0,0.01967692]
[1745835060357,0.001,94842.0,94841.0,0.01967692]
[1745835060565,0.001,94842.0,94841.0,0.009]
[1745835060978,0.001,94842.0,94841.0,0.02867692]
[1745835061796,0.08934126,94844.0,94841.0,0.02867692]
[1745835062255,0.09034126,94844.0,94841.0,0.03967692]
[1745835062446,0.08934126,94844.0,94841.0,0.03067692]
[1745835062669,0.08934126,94844.0,94842.0,0.01967692]
[1745835062889,0.04394126,94844.0,94842.0,0.01967692]
[1745835063622,0.04394126,94844.0,94843.0,0.01967692]
[1745835064039,0.04494126,94844.0,94843.0,0.01967692]
[1745835065061,0.04594126,94844.0,94843.0,0.01967692]
[1745835065482,0.04294126,94844.0,94843.0,0.01967692]
[1745835066788,0.45454126,94844.0,94843.0,0.29095991]
[1745835066986,0.45454126,94844.0,94843.0,0.0800851]
[1745835067186,0.45454126,94844.0,94843.0,0.29095991]
[1745835067570,0.45354126,94844.0,94843.0,0.27895991]
[1745835067773,0.45354126,94844.0,94843.0,0.23055173]
[1745835068190,0.45454126,94844.0,94843.0,0.24455173]
[1745835068551,0.45354126,94844.0,94842.0,0.2108769]
[1745835068786,0.45354126,94844.0,94843.0,0.21087481]
[1745835068988,0.45454126,94844.0,94843.0,0.014]
[1745835069188,0.45354126,94844.0,94843.0,0.002]
[1745835069435,0.45354126,94844.0,94843.0,0.21087481]
[1745835069608,0.46354126,94844.0,94843.0,0.21187481]
[1745835069807,0.46354126,94844.0,94843.0,0.21087481]
[1745835070052,0.46354126,94844.0,94843.0,0.21187481]
[1745835070240,0.47354126,94844.0,94843.0,0.001]
[1745835070434,0.46354126,94844.0,94842.0,0.001]
[1745835070610,0.46354126,94844.0,94843.0,0.001]
[1745835070831,0.47354126,94844.0,94843.0,0.001]
[1745835071131,0.47361363,94844.0,94843.0,0.21187481]
[1745835071532,0.47361363,94844.0,94843.0,0.001]
[1745835071744,0.46361363,94844.0,94843.0,0.001]
[1745835072118,0.47461363,94844.0,94843.0,0.002]
[1745835073572,0.49458527,94844.0,94843.0,0.002]
[1745835074027,0.47461363,94844.0,94843.0,0.002]
[1745835074474,0.47411363,94844.0,94843.0,0.002]
[1745835077824,0.47411363,94844.0,94843.0,0.21287481]
[1745835078804,0.06351363,94844.0,94843.0,0.70516495]
[1745835080683,0.06351363,94844.0,94843.0,0.71326072]
[1745835090149,0.06351363,94844.0,94843.0,0.71326072]
[1745835091320,0.06351363,94844.0,94843.0,0.66786072]
[1745835093365,0.06351363,94844.0,94843.0,0.44533577]
[1745835093716,0.06351363,94844.0,94843.0,0.56097058]
[1745835093944,0.06351363,94844.0,94843.0,0.65621058]
[1745835095873,0.06351363,94844.0,94843.0,0.76310072]
[1745835097060,0.06351363,94844.0,94843.0,0.002]
[1745835097061,0.56801363,94844.0,94843.0,0.002]
[1745835097255,0.56801363,94844.0,94812.0,0.5]
[1745835097256,0.92200377,94844.0,94812.0,0.5]
[1745835097456,0.34,94821.0,94803.0,0.00787417]
[1745835097715,0.05,94831.0,94803.0,0.00787417]
[1745835097716,0.34,94811.0,94803.0,0.00787417]
[1745835097934,0.00263754,94810.0,94803.0,0.00787417]
[1745835098245,0.00263754,94810.0,94798.0,0.0008486]
[1745835098445,0.0486,94808.0,94798.0,0.0008486]
[1745835098618,0.00263758,94807.0,94798.0,0.0008486]
[1745835098950,0.0074035,94806.0,94803.0,0.013]
[1745835099173,0.00263775,94805.0,94803.0,4.575e-05]
[1745835099609,0.10689014,94804.0,94803.0,4.575e-05]
[1745835100213,0.10952771,94804.0,94803.0,4.575e-05]
[1745835100525,0.00263757,94804.0,94803.0,4.575e-05]
[1745835100694,0.00263739,94806.0,94803.0,4.575e-05]
[1745835100934,0.00263739,94804.0,94803.0,4.575e-05]
[1745835101044,0.0026374,94806.0,94803.0,4.575e-05]
[1745835101705,0.001,94805.0,94803.0,0.01204575]
[1745835101930,0.0026374,94804.0,94803.0,4.575e-05]
[1745835102130,0.0036374,94804.0,94803.0,0.01404575]
[1745835102339,0.0036374,94804.0,94803.0,0.02604575]
[1745835102549,0.0036374,94804.0,94803.0,0.01404575]
[1745835102771,0.0026374,94804.0,94803.0,4.575e-05]
[1745835102953,0.00463742,94805.0,94803.0,0.02604575]
[1745835103093,0.00363742,94805.0,94803.0,0.01404575]
[1745835103514,0.001,94804.0,94803.0,0.01304575]
[1745835103714,0.002,94804.0,94803.0,0.02704575]
[1745835103945,0.00463736,94804.0,94803.0,0.02704575]
[1745835104680,0.00363736,94804.0,94803.0,0.01404575]
[1745835105171,0.00263736,94804.0,94803.0,0.01204575]
[1745835105408,0.00263736,94804.0,94803.0,4.575e-05]
[1745835105671,0.00363736,94804.0,94803.0,0.02704575]
[1745835106528,0.00363736,94804.0,94803.0,0.01304575]
[1745835106710,0.00363736,94804.0,94803.0,0.02704575]
[1745835106886,0.00463736,94804.0,94803.0,0.02704575]
[1745835112758,0.002,94804.0,94803.0,0.02704575]
[1745835113640,0.002,94804.0,94803.0,0.04159449]
[1745835113842,0.002,94804.0,94803.0,0.23800953]
[1745835114243,0.001,94804.0,94803.0,0.22500953]
[1745835114630,0.003,94804.0,94803.0,0.24000953]
[1745835114830,0.002,94804.0,94803.0,0.22600953]
[1745835115269,0.003,94804.0,94803.0,0.23900953]
[1745835116500,0.003,94804.0,94803.0,0.02804575]
[1745835116659,0.003,94804.0,94803.0,0.25857881]
[1745835117263,0.003,94804.0,94803.0,0.23900953]
[1745835118213,0.003,94804.0,94803.0,0.25858388]
[1745835118412,0.003,94804.0,94803.0,0.0476201]
[1745835118551,0.003,94804.0,94803.0,0.02804575]
[1745835122776,0.003,94804.0,94803.0,0.23900953]
[1745835127107,0.003,94804.0,94803.0,0.02804575]
[1745835127856,0.003,94804.0,94803.0,0.12120575]
[1745835128388,0.4136,94804.0,94803.0,0.12120575]
[1745835129798,0.4136,94804.0,94803.0,0.43905967]
[1745835134358,0.4136,94804.0,94803.0,0.02804575]
[1745835134563,0.4136,94804.0,94782.0,0.00550874]
[1745835134564,0.61589014,94804.0,94782.0,0.00550874]
[1745835134774,0.61589014,94804.0,94751.0,0.0024244]
[1745835134775,0.2644504,94792.0,94790.0,4.577e-05]
[1745835134889,0.82059991,94791.0,94790.0,4.577e-05]
[1745835135090,0.34,94789.0,94780.0,4.597e-05]
[1745835135333,0.0026384,94788.0,94780.0,4.597e-05]
[1745835135544,0.34,94786.0,94780.0,4.597e-05]
[1745835135717,0.34,94784.0,94780.0,4.597e-05]
[1745835135918,0.10952861,94783.0,94780.0,4.597e-05]
[1745835136708,0.00738848,94782.0,94780.0,4.597e-05]
[1745835136907,0.10952852,94781.0,94780.0,4.597e-05]
[1745835137289,0.10952852,94781.0,94780.0,0.01004597]
[1745835137490,0.116917,94781.0,94780.0,0.00804597]
[1745835137960,0.116917,94781.0,94780.0,0.01004597]
[1745835138167,0.116917,94781.0,94780.0,0.00804597]
[1745835138577,0.116917,94781.0,94780.0,4.597e-05]
[1745835138933,0.117917,94781.0,94780.0,0.00504597]
[1745835139941,0.117917,94781.0,94780.0,0.00704597]
[1745835140138,0.40355403,94776.0,94760.0,0.09316]
[1745835140344,0.51044417,94776.0,94760.0,0.09316]
[1745835141990,0.51144417,94776.0,94760.0,0.09316]
[1745835142549,0.51244417,94776.0,94775.0,0.0034243]
[1745835145031,0.40555403,94776.0,94775.0,0.0034243]
[1745835146127,0.39855403,94776.0,94775.0,0.0034243]
[1745835151785,0.002,94776.0,94775.0,0.0034243]
[1745835151992,0.002,94776.0,94775.0,0.00776989]
[1745835152997,0.002,94776.0,94762.0,0.08509869]
[1745835152998,0.002,94776.0,94767.0,0.0932]
[1745835153416,0.00263815,94775.0,94767.0,0.0932]
[1745835154945,0.00263815,94775.0,94767.0,0.0972]
[1745835155141,0.00263815,94775.0,94767.0,0.0992]
[1745835155321,0.00263815,94775.0,94767.0,0.0932]
[1745835155730,0.00463815,94775.0,94767.0,0.0992]
[1745835156760,0.00463815,94775.0,94765.0,0.0932]
[1745835157606,0.00363815,94775.0,94765.0,0.0932]
[1745835158050,0.00363815,94775.0,94765.0,0.0972]
[1745835158051,0.00463815,94775.0,94765.0,0.0972]
[1745835158456,0.00363815,94775.0,94765.0,0.0972]
[1745835158872,0.00463815,94775.0,94765.0,0.0992]
[1745835160452,0.002,94775.0,94766.0,0.0574523]
[1745835160653,0.002,94775.0,94772.0,0.01055163]
[1745835160849,0.002,94775.0,94771.0,0.22158644]
[1745835161095,0.002,94775.0,94772.0,0.01055163]
[1745835161510,0.00263776,94788.0,94771.0,0.11744189]
[1745835161712,0.001,94775.0,94774.0,0.01055141]
[1745835162039,0.009,94775.0,94774.0,0.21102834]
[1745835162190,0.009,94775.0,94773.0,0.22158198]
[1745835162397,0.009,94775.0,94773.0,0.21103016]
[1745835162558,0.001,94775.0,94772.0,0.22158328]
[1745835162761,0.00263777,94789.0,94773.0,0.22157991]
[1745835163035,0.001,94775.0,94774.0,0.01455141]
[1745835163161,0.00263777,94789.0,94774.0,0.01055141]
[1745835163368,0.00263777,94789.0,94775.0,0.0105513]
[1745835163635,0.00263777,94789.0,94772.0,0.00788411]
[1745835163636,0.00263777,94789.0,94772.0,0.01843574]
[1745835163835,0.00263777,94789.0,94775.0,0.22157689]
[1745835163991,0.00263777,94789.0,94775.0,0.0105513]
[1745835164195,0.00263777,94789.0,94774.0,0.22157964]
[1745835164457,0.001,94775.0,94774.0,0.01055141]
[1745835164649,0.001,94775.0,94773.0,0.05098861]
[1745835165247,0.00263777,94787.0,94775.0,0.0105513]
[1745835165451,0.00263777,94787.0,94776.0,0.05540526]
[1745835165618,0.00263777,94789.0,94776.0,0.05540526]
[1745835166656,0.40355403,94788.0,94776.0,0.06595645]
[1745835166862,0.00263777,94787.0,94776.0,0.06595645]
[1745835167057,0.00263777,94787.0,94776.0,0.27697944]
[1745835167315,0.00263777,94787.0,94777.0,0.04043709]
[1745835167614,0.00363777,94787.0,94777.0,0.04043709]
[1745835168018,0.00263777,94787.0,94777.0,0.04043709]
[1745835168222,0.00363777,94787.0,94777.0,0.04043709]
[1745835168823,0.00463777,94787.0,94777.0,0.04343709]
[1745835169494,0.00463777,94787.0,94778.0,0.05540526]
[1745835170058,0.001,94787.0,94778.0,0.05540526]
[1745835170254,0.00263776,94786.0,94778.0,0.05540526]
[1745835170659,0.00263776,94786.0,94777.0,0.006]
[1745835170890,0.00263776,94786.0,94775.0,0.0105513]
[1745835171104,0.00263777,94789.0,94775.0,0.0105513]
[1745835171302,0.002,94787.0,94778.0,0.006]
[1745835171540,0.00263777,94786.0,94778.0,0.003]
[1745835171876,0.00363777,94786.0,94778.0,0.003]
[1745835172233,0.00363777,94786.0,94775.0,0.22157697]
[1745835172538,0.00363777,94786.0,94778.0,0.003]
[1745835172917,0.00363777,94786.0,94778.0,0.01355097]
[1745835173143,0.00363777,94786.0,94779.0,0.07896574]
[1745835173349,0.00363777,94786.0,94778.0,0.003]
[1745835173501,0.00463777,94786.0,94778.0,0.003]
[1745835173703,0.00363777,94786.0,94777.0,0.01055108]
[1745835173908,0.00463777,94786.0,94778.0,0.003]
[1745835174110,0.00363777,94786.0,94778.0,0.003]
[1745835174540,0.00463777,94786.0,94779.0,0.003]
[1745835174996,0.00363777,94786.0,94778.0,0.003]
[1745835175407,0.00463777,94786.0,94778.0,0.006]
[1745835177236,0.00363777,94786.0,94778.0,0.003]
[1745835177471,0.00463777,94786.0,94779.0,0.003]
[1745835177891,0.00363777,94786.0,94778.0,0.003]
[1745835178069,0.00463777,94786.0,94778.0,0.006]
[1745835178273,0.00363777,94786.0,94777.0,0.22157273]
[1745835178653,0.00563777,94786.0,94779.0,0.006]
[1745835178854,0.00463777,94786.0,94779.0,0.003]
[1745835179249,0.00563777,94786.0,94779.0,0.003]
[1745835179885,0.00463777,94786.0,94778.0,0.003]
[1745835180083,0.002,94786.0,94778.0,0.003]
[1745835180286,0.003,94786.0,94778.0,0.003]
[1745835180518,0.00263777,94785.0,94777.0,0.01355108]
[1745835180724,0.00263777,94785.0,94779.0,0.003]
[1745835180924,0.00263777,94785.0,94779.0,0.004]
[1745835181763,0.00363777,94785.0,94779.0,0.007]
[1745835181967,0.00363777,94785.0,94779.0,0.003]
[1745835182171,0.00363777,94785.0,94780.0,0.09296]
[1745835183185,0.00463777,94785.0,94780.0,0.09296]
[1745835183404,0.00363777,94785.0,94780.0,0.09296]
[1745835183925,0.00363777,94785.0,94780.0,0.09596]
[1745835184116,0.00463777,94785.0,94780.0,0.09996]
[1745835185297,0.00463777,94785.0,94782.0,0.01055052]
[1745835185298,0.002,94785.0,94782.0,0.01055052]
[1745835185521,0.002,94785.0,94784.0,0.21100607]
[1745835185738,0.002,94785.0,94784.0,0.31732473]
[1745835186176,0.001,94785.0,94784.0,0.31732473]
[1745835186409,0.00263757,94797.0,94787.0,0.21099918]
[1745835186618,0.4061916,94797.0,94787.0,0.01054996]
[1745835186841,0.00263754,94796.0,94787.0,0.01054996]
[1745835187044,0.01004131,94796.0,94786.0,0.22155137]
[1745835187257,0.00263755,94795.0,94786.0,0.22155137]
[1745835187452,0.00263755,94795.0,94787.0,0.03942369]
[1745835187957,0.00263755,94795.0,94787.0,0.04042369]
[1745835188166,0.00740377,94794.0,94787.0,0.03942369]
[1745835188385,0.00263755,94793.0,94787.0,0.03942369]
[1745835189285,0.00263756,94796.0,94787.0,0.03942369]
[1745835189529,0.00263756,94796.0,94786.0,0.001]
[1745835189750,0.00263756,94796.0,94787.0,0.001]
[1745835190190,0.40355403,94795.0,94786.0,0.001]
[1745835190381,0.00263756,94794.0,94785.0,0.22155336]
[1745835190554,0.00263756,94794.0,94787.0,0.002]
[1745835190709,0.00263756,94794.0,94787.0,0.001]
[1745835191563,0.00263756,94794.0,94784.0,0.0604503]
[1745835191776,0.00263756,94794.0,94787.0,0.001]
[1745835193349,0.00263756,94794.0,94787.0,0.002]
[1745835194229,0.00263756,94794.0,94787.0,0.003]
[1745835194699,0.00263756,94794.0,94787.0,0.01354996]
[1745835194927,0.40355403,94795.0,94790.0,0.01054963]
[1745835195155,0.40355403,94793.0,94792.0,0.21098826]
[1745835195379,0.40355403,94793.0,94792.0,0.25978826]
[1745835195597,0.40355403,94793.0,94792.0,0.3666784]
[1745835196708,0.40355403,94793.0,94792.0,0.3676784]
[1745835196843,0.40355403,94793.0,94792.0,0.3666784]
[1745835197262,0.40455403,94793.0,94792.0,0.3696784]
[1745835198881,0.001,94793.0,94792.0,0.3726784]
[1745835217146,0.001,94793.0,94792.0,0.006]
[1745835217348,0.04913792,94793.0,94792.0,0.006]
[1745835217724,0.05653729,94793.0,94792.0,0.006]
[1745835218122,0.05653729,94793.0,94792.0,0.003]
[1745835218524,0.05553729,94793.0,94792.0,0.001]
[1745835218858,0.05653729,94793.0,94792.0,0.001]
[1745835219053,0.05653729,94793.0,94770.0,0.10043276]
[1745835219228,0.05653729,94793.0,94780.0,0.01055074]
[1745835219229,0.00739937,94792.0,94780.0,0.01055074]
[1745835219435,0.01003696,94792.0,94779.0,0.0488]
[1745835220037,0.01003696,94792.0,94779.0,0.05935086]
[1745835220467,0.00263759,94792.0,94780.0,0.01055074]
[1745835220839,0.00263759,94792.0,94779.0,0.2703676]
[1745835221090,0.001,94793.0,94780.0,0.01055074]
[1745835221544,0.00263762,94798.0,94780.0,0.06309165]
[1745835221881,0.00263762,94798.0,94780.0,0.01255074]
[1745835222422,0.00263762,94798.0,94780.0,0.01055074]
[1745835222620,0.00263762,94798.0,94780.0,0.01455074]
[1745835222843,0.00263762,94798.0,94780.0,0.01255074]
[1745835223014,0.00263762,94798.0,94780.0,0.003]
[1745835223545,0.00263762,94798.0,94780.0,0.08625812]